Cogmind - Beta 10.1 @@@ ROGUE MODE // 2020.09.26 @ 10:53:45 Player: ~Hale4 Result: Destroyed by as-09616 with Assembled Rifle Performance ------------- Evolutions (0) 0 Regions Visited (0) 0 Robots Destroyed (6) 30 Value Destroyed (0) 0 Prototype IDs (0) 0 Alien Tech Used (0) 0 Bonus (0) 0 TOTAL SCORE: 30 Bonus ------- None Cogmind --------- Core Integrity 0/250 Matter 197/300 Energy 249/250 System Corruption 1% Temperature Cool (0) Movement Core (200) Ox3 Location -11/Scrapyard Parts ------- > --- POWER (1) -------- Ion Engine > --- PROPULSION (2) --- (None) > --- UTILITY (2) ------ Small Storage Unit > --- WEAPON (2) ------- Assault Rifle > --- INVENTORY (6) ---- Wheel Peak State ------------ > --- POWER ------------ Light Ion Engine > --- PROPULSION ------- Light Treads Light Treads > --- UTILITY ---------- Small Storage Unit > --- WEAPON ----------- Small Laser Assault Rifle > --- INVENTORY -------- Ion Engine Wheel Medium Laser [Rating: 6] Favorites ----------- Power Light Ion Engine Engine Light Ion Engine Propulsion Light Treads Treads Light Treads Utility Small Storage Unit Storage Small Storage Unit Weapon Assault Rifle Energy Gun Small Laser Ballistic Gun Assault Rifle Build | -11 ------- Run | Scr Slots Evolved . | . Power . | . Propulsion . | . Utility . | . Weapon . | . Parts Attached 9 | 9 Power 2 | 2 Engine 2 | 2 Core . | . Reactor . | . Propulsion 2 | 2 Treads 2 | 2 Leg . | . Wheel . | . Hover . | . Flight . | . Utility 1 | 1 Device . | . Storage 1 | 1 Processor . | . Hackware . | . Protection . | . Artifact . | . Weapon 4 | 4 Energy Gun 3 | 3 Energy Cannon . | . Ballistic Gun 1 | 1 Ballistic Cannon . | . Launcher . | . Special Weapon . | . Impact Weapon . | . Slashing Weapon . | . Piercing Weapon . | . Special Melee Weapon . | . Unidentified Prototypes . | . Parts Lost 5 | 5 Power 1 | 1 Propulsion 2 | 2 Utility . | . Weapon 2 | 2 Highest Loss Streak 3 | 3 Average Slot Usage (%) . | . Naked Turns . | . Heaviest Build 12 | 12 Greatest Support 40 | 40 Greatest Overweight (x) . | . Average Overweight (x) . | . Largest Inventory Capacity 6 | 6 Average Capacity 4 | 4 Most Carried 4 | 4 Average Carried 3 | 3 Final Capacity 6 | 6 Final Carried 1 | 1 Class Distribution -------------------- None Dominant Class ---------------- None Resources | -11 ----------- Run | Scr Matter Collected 261 | 261 Remotely . | . Salvage Created 89 | 89 Parts . | . Haulers Intercepted . | . Recyclers Shooed . | . Parts Field Recycled . | . Retrieved Matter . | . Parts Self-Destructed . | . Prevented . | . Kills | -11 ------- Run | Scr Combat Hostiles Destroyed 6 | 6 Guns 6 | 6 Classes Destroyed 1 | 1 Assembled 6 | 6 Best Kill Streak 4 | 4 Combat Bots Only 4 | 4 Max Kills in Single Turn 1 | 1 Gunslinging . | . Exploded . | . Melee . | . Uniques/NPCs Destroyed . | . Combat | -11 -------- Run | Scr Damage Taken 797 | 797 Core 256 | 256 Absorbed by Shields . | . Core Remaining (%) . | . Volleys Fired 33 | 33 Largest 2 | 2 Hottest 70 | 70 Shots Fired 61 | 61 Gun 61 | 61 Cannon . | . Launcher . | . Special . | . Kinetic 33 | 33 Thermal 28 | 28 Explosive . | . Electromagnetic . | . Robot Hit Streak 6 | 6 Robot Miss Streak 4 | 4 Penetration Max . | . Secondary Targets . | . Shots Hit Robots 36 | 36 Core Hits 13 | 13 Critical Hits 1 | 1 Critical Kills . | . Critical Parts Destroyed 1 | 1 Melee Attacks . | . Impact . | . Slashing . | . Piercing . | . Sneak Attacks . | . Combat Hostiles . | . Follow-up Attacks . | . Damage Inflicted 377 | 377 Guns 377 | 377 Cannons . | . Explosions . | . Melee . | . Ramming . | . Kinetic 191 | 191 Thermal 186 | 186 Explosive . | . Electromagnetic . | . Impact . | . Slashing . | . Piercing . | . Highest Corruption 1 | 1 Average Corruption 1 | 1 Corruption Purged . | . Effects 2 | 2 Message Errors 1 | 1 Targeting Errors 1 | 1 Overload Shots . | . Overflow Damage . | . Projectiles . | . Explosions . | . Melee . | . Knockbacks . | . Impact . | . Kinetic . | . Secondary . | . Self-Inflicted Damage . | . Shots . | . Rammed . | . Targets Rammed . | . Kicked . | . Crushed . | . Highest Temperature 80 | 80 Average Temperature 33 | 33 Received Heat Transfer 80 | 80 Siege Activations . | . Robots Corrupted . | . Combat Hostiles . | . Parts Fried . | . Impact Corruptions . | . Robots Melted . | . Combat Hostiles . | . Parts Melted . | . Heat Transferred 484 | 484 Parts Sabotaged . | . Parts Stolen . | . Parts Stripped . | . Power Chain Reactions . | . Missiles Intercepted . | . Alert | -11 ------- Run | Scr Peak Influence . | . Initial . | . Average . | . Maximum Alert Level . | . Low Security (%) 100 | 100 Level 1 . | . Level 2 . | . Level 3 . | . Level 4 . | . Level 5 . | . High Security . | . Max Security . | . Squads Dispatched . | . Investigation . | . Extermination . | . Reinforcement . | . Assault . | . Garrison . | . Intercept . | . Construction Impeded . | . Haulers Reinforced . | . Stealth | -11 --------- Run | Scr Distress Signals . | . Communications Jammed . | . Distress Signals . | . Times Spotted 13 | 13 Peak Tracking Total 8 | 8 Tactical Retreats 1 | 1 Traps | -11 ------- Run | Scr Traps Triggered . | . Indirectly . | . Trap Hack Attempts . | . Triggered . | . Disarmed . | . Reprogrammed . | . Reused . | . Traps Extracted . | . Installed . | . Triggered . | . Machines | -11 ---------- Run | Scr Machines Disabled . | . Max in Single Turn . | . Machines Sabotaged . | . Garrisons Compromised . | . Overloaded Fab Kills . | . Fab Network Shutdowns . | . Hacking | -11 --------- Run | Scr Machines Accessed . | . Terminals . | . Fabricators . | . Repair Stations . | . Recycling Units . | . Scanalyzers . | . Garrison Access . | . Total Hacks . | . Successful . | . Failed . | . Catastrophic . | . Database Lockouts . | . Manual . | . Terminals . | . Fabricators . | . Repair Stations . | . Recycling Units . | . Scanalyzers . | . Garrison Access . | . Terminal Hacks . | . Fabricator Hacks . | . Repair Station Hacks . | . Recycling Unit Hacks . | . Scanalyzer . | . Garrison Access Hacks . | . Unauthorized Hacks . | . Terminals . | . Fabricators . | . Repair Stations . | . Recycling Units . | . Scanalyzers . | . Garrison Access . | . Data Cores Recovered . | . Used . | . Hacking Detections . | . Full Trace Events . | . Feedback Events . | . Feedback Blocked . | . Robot Schematics Acquired . | . Robots Built . | . Matter . | . Time . | . Total Robot Build Rating . | . Part Schematics Acquired . | . Parts Built . | . Matter . | . Time . | . Total Part Build Rating . | . Parts Repaired . | . Time . | . Parts Recycled . | . Recycled Matter . | . Retrieved Matter . | . Retrieved Components . | . Parts Scanalyzed . | . Part Schematics Acquired . | . Parts Damaged . | . Bothacking | -11 ------------ Run | Scr Used RIF Installer . | . Robots Hacked . | . Non-combat . | . Combat . | . Robot Hacks Applied . | . Relay Couplers Released . | . Robots Rewired . | . Allies Hacked . | . Hacks Repelled . | . Allies | -11 -------- Run | Scr Total Allies . | . Largest Group . | . Highest-Rated Group . | . Highest-Rated Ally . | . Total Orders . | . Ally Attacks . | . Total Damage . | . Kills . | . Allies Corrupted . | . Allies Melted . | . Intel | -11 ------- Run | Scr Robot Analysis Total . | . Derelict Logs Recovered . | . Drone Launches . | . Drone Recoveries . | . Exploration | -11 ------------- Run | Scr Turns Passed 1141 | 1141 Spaces Moved 422 | 422 Core 11 | 11 Treads 411 | 411 Legs . | . Wheels . | . Hover . | . Flight . | . Fastest Speed 50 | 50 Average Speed 157 | 157 Slowest Speed 160 | 160 Overloaded Moves . | . Propulsion Burnouts . | . Robots Hopped . | . Cave-ins Triggered . | . Exploration Rate (%) 54 | 54 Regions Visited . Branch Regions . Pre-discovered Areas . | . Known Exits Taken . | . Unknown Exits Taken . | . Scrap Searched . | . Spaces Dug . | . Terrain Destroyed . | . Melee . | . Projectile . | . AOE . | . Terrain Rammed . | . Walls Destroyed . | . Machines Disabled . | . Actions | -11 --------- Run | Scr Total 840 | 840 Wait 367 | 367 Move 422 | 422 Hop . | . Pick Up 9 | 9 Fast Attach . | . Attach 8 | 8 Detach . | . Swap 1 | 1 Drop . | . Fire 33 | 33 Melee . | . Ram . | . Kick . | . Crush . | . Escape Stasis . | . Rewire . | . Trap . | . Miscellaneous . | . Route ------- -11/Scrapyard (discovered 1 exit: [*Mat]) History --------- Turn | Location | Event 9 | -11/Scrapyard | Discovered new exit (range 15) 978 | -11/Scrapyard | Assembled infested the area 1093 | -11/Scrapyard | Core integrity fell below 50% 1120 | -11/Scrapyard | Core integrity fell below 20% 1142 | -11/Scrapyard | Destroyed by as-09616 with Assembled Rifle Last Messages --------------- 01054_ Destroyed Asb. Hover Unit. 01060_ Destroyed Asb. Blade. 01060_ as-94324 destroyed. 01061_ Lgt. Ion Engine destroyed. 01076_ Med. Laser destroyed. 01076_ System corrupted by crushing effect (+1). 01080_ as-42187 destroyed. 01083_ as-17546 destroyed. 01086_ Acquired 12 matter. 01090_ as-84748 suffers critical hit. 01090_ Destroyed Asb. Hover Unit. 01093_ as-84748 destroyed. 01096_ Acquired 17 matter. 01113_ System corrupted: Sml. Laser targeting data glitched. 01122_ QWPSABD%Q4FE14>Z%TK6 01138_ as-74585 destroyed. Map ----- +----------------------------------------------------+ | ?????????????????????????????????????????????????? | | ?????????????????????????????????????????????????? | | ?????????????????????????????????????????????????? | | ????????????????????????????????########?????????? | | ????????????????????????????????# #?????????? | | ????????????????????????????????# #####??????? | | ????????????????????????????????# #??????? | | ????????????????????????????????# #??????? | | ????????????????????????????????# #??????? | | ????????????????????????????????# #??????? | | ????????????????????????????????## # ######??????? | | ?????????????????????????????????# ###???????????? | | ?????????????????????????????????# #?????????????? | | ?????????????????????????????????# #?????????????? | | ?????????????????????????????????# #?????????????? | | ?????????????????????????????????# #?????????????? | | ?????????????????????????????????# #?????????????? | | ????????????###########??######### #?????????????? | | ????????????# #??# ## #?????????????? | | ????????????# #??# ## #?????????????? | | ??????????########## #??# ## #?????????????? | | ??????????# ## # #??# ## #?????????????? | | ??????????# # #??# ## #?????????????? | | ??????????# # #??# ## ####??????????? | | ??????????# # ######## ### #??????????? | | ??????????# % @ % a=a* #??????????? | | ??????????# #% %% % #??????????? | | ??????????# ############### #??????????? | | ??????????# #?????????????## ###########?? | | ??????????# #????########### # #?? | | ??????????##########????# # # #?? | | ????????????????????????# #?? | | ????????????????????????# # # #?? | | ????????????????????????# # ###########?? | | ????##??????????????????########### ####????????? | | ????# ##??????????##########???# #????????? | | ????# #??????????# = #???# #?????#### | | ????# #??????????# #???# ####### | | ##### ############ ##### | | | | = ### ### | | # ###### ###### ###= ##### < ## ## | | #??###????###?# #???# ## ## | | #?????????????# #???########### ## | | #?????????????#### ####?????????????# ## | | #????????????????# #????????????????# ## | | #????????????????# #????????????????# ## | | #????????????????# #????????????????# ## | | #####????????????????# ######################## | | ?????????????????????# | +----------------------------------------------------+ Best States ------------- Heat Dissipation 25 Energy Generation 10 Energy Capacity 250 Matter Stores 282 Matter Capacity 300 Sight Range 16 Terrain Scan Density 10 Evasion (%) 50 Recoil Reduction 2 Item Schematics ----------------- None Robot Schematics ------------------ None Fabricated ------------ Nothing Alien Tech Used ----------------- None Achievements -------------- Curiosity Killed The Cat Challenges ------------ None Game ------ Seed PowerAntimatterSword Manual? 0 Play Time 00:08:22 Cumulative 20.2 hours Start 2020.09.26 @ 10:48:07 End 2020.09.26 @ 10:53:45 Sessions 0 Manual Loads 0 Difficulty Rogue Special Mode None Game No. 38 Rogue 38 Adventurer 0 Explorer 0 Win Type - Total 0 Types 0/0/0/0/0/0/0/0/0 Lore% 22 Gallery% 30 Achievement% 19 Wizard Run 0 Options --------- ASCII 0 Keyboard 0 Movement Mouse Keybinds 0 Fullscreen 2 Font 18/SmallcapsGlow Map View 76x50 Tactical HUD 1 Map Filters NONE Filters NONE Steam 1 RUN: 4711130d-4aa6-402e-83cd-c3ba6e96c4a1